Cogmind - Beta 9 @@@ ROGUE MODE // 2019.10.26 @ 15:28:36 Player: ModulinMyGlobulin Result: Self-destructed Performance ------------- Evolutions (3) 1500 Regions Visited (4) 800 Robots Destroyed (23) 115 Value Destroyed (504) 504 Prototype IDs (3) 60 Alien Tech Used (0) 0 Bonus (0) 0 TOTAL SCORE: 2979 Bonus ------- None Cogmind --------- Core Integrity 700/700 Matter 208/300 Energy 290/290 System Corruption 1% Temperature Cool (0) Location -7/Factory Parts ------- Power (1) Improved Deuterium Engine Propulsion (5) Armored Treads Advanced Treads Compact Wheel Armored Wheel Utility (5) Small Storage Unit Medium Storage Unit Improved Targeting Computer Energy Filter Power Shielding Weapon (2) Lightning Gun EM Pulse Cannon Inventory (10) Ion Engine Light Ion Engine Improved Ion Engine Aluminum Leg Heat Sink Small Storage Unit Medium Armor Plating EM Pulse Cannon EM Pulse Cannon Rocket Launcher Peak State ------------ Power Improved Deuterium Engine Propulsion Armored Treads Advanced Treads Compact Wheel Compact Wheel Armored Wheel Utility Small Storage Unit Medium Storage Unit Improved Targeting Computer Energy Filter Power Shielding Weapon Lightning Gun EM Pulse Cannon Inventory Ion Engine Light Ion Engine Improved Ion Engine Aluminum Leg Heat Sink Small Storage Unit Medium Armor Plating EM Pulse Cannon EM Pulse Cannon Rocket Launcher [Rating: 31] Favorites ----------- Power Ion Engine Engine Ion Engine Propulsion Compact Wheel Treads Advanced Treads Leg Aluminum Leg Wheel Compact Wheel Utility Small Storage Unit Device Energy Filter Storage Small Storage Unit Processor Improved Targeting Computer Protection Power Shielding Weapon EM Pulse Cannon Energy Gun Lightning Gun Energy Cannon EM Pulse Cannon Ballistic Gun Light Assault Rifle Build | -11 -10 -9 -8 -7 ------- Run | Scr Mat Mat Mat Fac Slots Evolved 6 | . . 2 2 2 Power . | . . . . . Propulsion 3 | . . 1 1 1 Utility 3 | . . 1 1 1 Weapon . | . . . . . Parts Attached 34 | 7 1 17 3 6 Power 4 | 1 . 2 . 1 Engine 4 | 1 . 2 . 1 Core . | . . . . . Reactor . | . . . . . Propulsion 11 | 2 . 5 1 3 Treads 2 | . . 1 . 1 Leg 2 | . . . 1 1 Wheel 7 | 2 . 4 . 1 Hover . | . . . . . Flight . | . . . . . Utility 7 | 2 1 1 2 1 Device 1 | . . . . 1 Storage 3 | 2 1 . . . Processor 2 | . . . 2 . Hackware . | . . . . . Protection 1 | . . 1 . . Artifact . | . . . . . Weapon 12 | 2 . 9 . 1 Energy Gun 5 | . . 4 . 1 Energy Cannon 2 | . . 2 . . Ballistic Gun 5 | 2 . 3 . . Ballistic Cannon . | . . . . . Launcher . | . . . . . Special Weapon . | . . . . . Impact Weapon . | . . . . . Slashing Weapon . | . . . . . Piercing Weapon . | . . . . . Special Melee Weapon . | . . . . . Unidentified Prototypes . | . . . . . Parts Lost 12 | . . 10 . 2 Power 1 | . . 1 . . Propulsion 5 | . . 4 . 1 Utility . | . . . . . Weapon 6 | . . 5 . 1 Highest Loss Streak 5 | . . 5 . 1 Average Slot Usage (%) 95 | . 100 92 100 96 Engine 9 | . 14 10 9 7 Treads 6 | . . . 9 14 Leg 2 | . . . 9 4 Wheel 24 | . 28 30 18 17 Device 2 | . . . . 5 Storage 19 | . 28 22 18 15 Processor 3 | . . . 9 7 Protection 7 | . . 10 9 7 Energy Gun 2 | . . 4 . 1 Energy Cannon 6 | . . . 18 11 Ballistic Gun 9 | . 28 13 . . Naked Turns . | . . . . . Heaviest Build 38 | 16 20 32 32 38 Greatest Support 44 | 20 20 42 28 44 Greatest Overweight (x) 3 | 3 . 1 1 1 Average Overweight (x) . | . . . 1 . Largest Inventory Capacity 10 | 8 10 10 10 10 Average Capacity 9 | 6 9 10 10 10 Most Carried 10 | 7 9 10 9 10 Average Carried 8 | 3 8 7 8 9 Final Capacity 10 | . . . . 10 Final Carried 10 | . . . . 10 Class Distribution -------------------- 97% | Mutant Dominant Class ---------------- Mutant | -10/Materials Mutant | -9/Materials Mutant | -8/Materials Mutant | -7/Factory Resources | -11 -10 -9 -8 -7 ----------- Run | Scr Mat Mat Mat Fac Matter Collected 549 | 249 44 243 . 13 Remotely . | . . . . . Salvage Created 635 | 98 88 427 . 22 Parts 33 | 2 11 18 . 2 Haulers Intercepted . | . . . . . Recyclers Shooed . | . . . . . Parts Field Recycled . | . . . . . Retrieved Matter . | . . . . . Parts Self-Destructed . | . . . . . Prevented . | . . . . . Kills | -11 -10 -9 -8 -7 ------- Run | Scr Mat Mat Mat Fac Combat Hostiles Destroyed 18 | . 6 12 . . Melee 2 | . . 2 . . Guns 16 | . 6 10 . . Classes Destroyed 6 | 1 1 2 . 2 Worker 2 | . . . . 2 Recycler 1 | 1 . . . . Operator 2 | . . . . 2 Swarmer 10 | . 6 4 . . Grunt 7 | . . 7 . . Sentry 1 | . . 1 . . Best Kill Streak 4 | 1 4 4 . 3 Combat Bots Only 4 | . 4 4 . . Max Kills in Single Turn 3 | 1 1 1 . 3 Gunslinging . | . . . . . Exploded . | . . . . . Melee 1 | . . 1 . . Uniques/NPCs Destroyed . | . . . . . Combat | -11 -10 -9 -8 -7 -------- Run | Scr Mat Mat Mat Fac Damage Taken 1562 | . 158 921 110 373 Core 253 | . 18 235 . . Absorbed by Shields . | . . . . . Core Remaining (%) 83 | 100 92 41 100 . Volleys Fired 73 | 2 12 50 . 9 Largest 2 | 2 2 2 . 2 Hottest 126 | 40 40 76 . 126 Shots Fired 130 | 4 24 84 . 18 Gun 118 | 4 24 84 . 6 Cannon 12 | . . . . 12 Launcher . | . . . . . Special . | . . . . . Kinetic 89 | 4 24 61 . . Thermal 23 | . . 23 . . Explosive . | . . . . . Electromagnetic 18 | . . . . 18 Robot Hit Streak 29 | 4 10 29 . 13 Robot Miss Streak 7 | . 2 7 . 1 Penetration Max . | . . . . . Secondary Targets 1 | . . 1 . . Max Gunslinging Chain 1 | . . 1 . . Shots Hit Robots 95 | 4 15 62 . 14 Core Hits 40 | 2 6 24 . 8 Critical Hits . | . . . . . Critical Kills . | . . . . . Critical Parts Destroyed . | . . . . . Melee Attacks . | . . . . . Impact . | . . . . . Slashing . | . . . . . Piercing . | . . . . . Sneak Attacks . | . . . . . Combat Hostiles . | . . . . . Follow-up Attacks . | . . . . . Damage Inflicted 1591 | 38 164 619 11 759 Guns 809 | 38 157 594 . 20 Cannons 119 | . . . . 119 Explosions 620 | . . . . 620 Melee . | . . . . . Ramming 43 | . 7 25 11 . Kinetic 495 | 38 157 300 . . Thermal 914 | . . 294 . 620 Explosive . | . . . . . Electromagnetic 139 | . . . . 139 Impact . | . . . . . Slashing . | . . . . . Piercing . | . . . . . Highest Corruption 2 | . . . 2 1 Average Corruption 1 | . . . 2 1 Corruption Purged . | . . . . . Overload Shots . | . . . . . Overflow Damage 233 | . . . . 233 Projectiles 9 | . . . . 9 Explosions 224 | . . . . 224 Melee . | . . . . . Knockbacks 1 | . . 1 . . Impact 1 | . . 1 . . Kinetic . | . . . . . Secondary . | . . . . . Self-Inflicted Damage 302 | . 3 11 5 283 Shots 3 | . . . . 3 Rammed 11 | . 1 6 4 . Targets Rammed 11 | . 1 6 4 . Kicked . | . . . . . Crushed . | . . . . . Highest Temperature 324 | . . 104 . 324 Average Temperature 78 | . . 42 . 127 Received Heat Transfer 360 | . 12 312 36 . Effects 1 | . . . . 1 Energy Bleed 1 | . . . . 1 Siege Activations . | . . . . . Robots Corrupted . | . . . . . Combat Hostiles . | . . . . . Parts Fried 1 | . . . . 1 Impact Corruptions . | . . . . . Robots Melted . | . . . . . Combat Hostiles . | . . . . . Parts Melted 3 | . . 3 . . Heat Transferred 1191 | . . 791 . 400 Parts Sabotaged . | . . . . . Parts Stolen . | . . . . . Parts Stripped . | . . . . . Power Chain Reactions 1 | . . . . 1 Missiles Intercepted . | . . . . . Alert | -11 -10 -9 -8 -7 ------- Run | Scr Mat Mat Mat Fac Peak Influence 260 | 5 185 260 61 189 Average Influence 101 | 1 51 157 54 88 Maximum Alert Level 1 | . . 1 . . Low Security (%) 92 | . . . . . Level 1 7 | . . . . . Level 2 . | . . . . . Level 3 . | . . . . . Level 4 . | . . . . . Level 5 . | . . . . . High Security . | . . . . . Max Security . | . . . . . Squads Dispatched 4 | . 1 1 . 2 Investigation . | . . . . . Extermination 1 | . . . . 1 Reinforcement 3 | . 1 1 . 1 Assault . | . . . . . Garrison . | . . . . . Intercept . | . . . . . Construction Impeded 1 | . . . . 1 Haulers Reinforced . | . . . . . Stealth | -11 -10 -9 -8 -7 --------- Run | Scr Mat Mat Mat Fac Distress Signals . | . . . . . Communications Jammed . | . . . . . Distress Signals . | . . . . . Times Spotted 35 | . 8 21 2 4 Peak Tracking Total 6 | . 4 6 2 1 Tactical Retreats 1 | . . 1 . . Traps | -11 -10 -9 -8 -7 ------- Run | Scr Mat Mat Mat Fac Traps Triggered . | . . . . . Indirectly . | . . . . . Trap Hack Attempts . | . . . . . Triggered . | . . . . . Disarmed . | . . . . . Reprogrammed . | . . . . . Reused . | . . . . . Traps Extracted . | . . . . . Installed . | . . . . . Triggered . | . . . . . Machines | -11 -10 -9 -8 -7 ---------- Run | Scr Mat Mat Mat Fac Machines Disabled 6 | . . . . 6 Max in Single Turn 4 | . . . . 4 Garrison Access 1 | . . . . 1 Machines Sabotaged . | . . . . . Garrisons Compromised . | . . . . . Overloaded Fab Kills . | . . . . . Fab Network Shutdowns . | . . . . . Hacking | -11 -10 -9 -8 -7 --------- Run | Scr Mat Mat Mat Fac Machines Accessed 10 | . 2 3 1 4 Terminals 9 | . 2 3 1 3 Fabricators . | . . . . . Repair Stations . | . . . . . Recycling Units . | . . . . . Scanalyzers . | . . . . . Garrison Access 1 | . . . . 1 Total Hacks 20 | . 5 8 1 6 Successful 10 | . 3 3 1 3 Failed 10 | . 2 5 . 3 Catastrophic 2 | . 1 . . 1 Database Lockouts . | . . . . . Manual . | . . . . . Terminals 19 | . 5 8 1 5 Fabricators . | . . . . . Repair Stations . | . . . . . Recycling Units . | . . . . . Scanalyzers . | . . . . . Garrison Access 1 | . . . . 1 Terminal Hacks 9 | . 3 3 1 2 Prototype ID Bank 2 | . . 2 . . Level Access Points 1 | . 1 . . . Branch Access Points 2 | . . 1 . 1 Emergency Access Points 2 | . 1 . . 1 Locate Traps 2 | . 1 . 1 . Fabricator Hacks . | . . . . . Repair Station Hacks . | . . . . . Recycling Unit Hacks . | . . . . . Scanalyzer . | . . . . . Garrison Access Hacks 1 | . . . . 1 Seal Access 1 | . . . . 1 Unauthorized Hacks . | . . . . . Terminals . | . . . . . Fabricators . | . . . . . Repair Stations . | . . . . . Recycling Units . | . . . . . Scanalyzers . | . . . . . Garrison Access . | . . . . . Data Cores Recovered 1 | . . . . 1 Used 1 | . . . . 1 Hacking Detections 6 | . . 3 . 3 Full Trace Events . | . . . . . Feedback Events . | . . . . . Feedback Blocked . | . . . . . Robot Schematics Acquired . | . . . . . Robots Built . | . . . . . Matter . | . . . . . Time . | . . . . . Total Robot Build Rating . | . . . . . Part Schematics Acquired . | . . . . . Parts Built . | . . . . . Matter . | . . . . . Time . | . . . . . Total Part Build Rating . | . . . . . Parts Repaired . | . . . . . Time . | . . . . . Parts Recycled . | . . . . . Recycled Matter . | . . . . . Retrieved Matter . | . . . . . Retrieved Components . | . . . . . Parts Scanalyzed . | . . . . . Part Schematics Acquired . | . . . . . Parts Damaged . | . . . . . Bothacking | -11 -10 -9 -8 -7 ------------ Run | Scr Mat Mat Mat Fac Used RIF Installer . | . . . . . Robots Hacked . | . . . . . Non-combat . | . . . . . Combat . | . . . . . Robot Hacks Applied . | . . . . . Relay Couplers Released . | . . . . . Robots Rewired . | . . . . . Allies Hacked . | . . . . . Hacks Repelled . | . . . . . Allies | -11 -10 -9 -8 -7 -------- Run | Scr Mat Mat Mat Fac Total Allies . | . . . . . Largest Group . | . . . . . Highest-Rated Group . | . . . . . Highest-Rated Ally . | . . . . . Total Orders . | . . . . . Ally Attacks . | . . . . . Total Damage . | . . . . . Kills . | . . . . . Allies Corrupted . | . . . . . Allies Melted . | . . . . . Intel | -11 -10 -9 -8 -7 ------- Run | Scr Mat Mat Mat Fac Robot Analysis Total . | . . . . . Derelict Logs Recovered . | . . . . . Drone Launches . | . . . . . Drone Recoveries . | . . . . . Exploration | -11 -10 -9 -8 -7 ------------- Run | Scr Mat Mat Mat Fac Turns Passed 1264 | 77 160 477 118 432 Spaces Moved 950 | 48 137 295 105 365 Core 21 | 21 . . . . Treads . | . . . . . Legs . | . . . . . Wheels 929 | 27 137 295 105 365 Hover . | . . . . . Flight . | . . . . . Fastest Speed 50 | 50 80 80 105 96 Average Speed 96 | 112 80 91 105 101 Slowest Speed 200 | 200 80 110 105 105 Overloaded Moves . | . . . . . Propulsion Burnouts . | . . . . . Robots Hopped . | . . . . . Cave-ins Triggered . | . . . . . Exploration Rate (%) 19 | 3 28 33 17 15 Regions Visited 4 Branch Regions . Pre-discovered Areas . | . . . . . Known Exits Taken 1 | . 1 . . . Unknown Exits Taken 3 | 1 . 1 1 . Scrap Searched . | . . . . . Spaces Dug . | . . . . . Terrain Destroyed 30 | . . . . 30 Melee . | . . . . . Projectile . | . . . . . AOE 30 | . . . . 30 Actions | -11 -10 -9 -8 -7 --------- Run | Scr Mat Mat Mat Fac Total 1171 | 63 167 422 112 407 Wait 78 | . 10 43 . 25 Move 946 | 47 136 294 104 365 Hop . | . . . . . Pick Up 21 | 7 4 9 1 . Fast Attach 16 | 7 . 5 . 4 Attach 12 | . . 9 2 1 Detach 1 | . . . . 1 Swap 6 | . 1 3 1 1 Drop 7 | . 3 3 . 1 Fire 73 | 2 12 50 . 9 Melee . | . . . . . Ram 11 | . 1 6 4 . Kick . | . . . . . Crush . | . . . . . Escape Stasis . | . . . . . Rewire . | . . . . . Trap . | . . . . . Miscellaneous . | . . . . . Route ------- -11/Scrapyard -10/Materials (discovered 3 exits: *Mat x3) -9/Materials (discovered 5 exits: *Mat / Min x2 / Sto x2) -8/Materials -7/Factory (discovered 2 exits: Low x2) History --------- Turn | Location | Event 36 | -11/Scrapyard | Discovered new exit (range 16) 78 | -11/Scrapyard | Entered Materials 157 | -10/Materials | Identified exit to Materials 238 | -10/Materials | Entered another Materials area 238 | -9/Materials | Evolved 2 slots: Propulsion x1, Utility x1 311 | -9/Materials | Build established: Mutant 572 | -9/Materials | Identified exit to Mines 572 | -9/Materials | Identified exit to Storage 582 | -9/Materials | Lost 5 parts (1p4w) 623 | -9/Materials | Core integrity fell below 50% 659 | -9/Materials | Lost 3 parts (2n1w) 687 | -9/Materials | Discovered new exit (range 16) 715 | -9/Materials | Entered another Materials area 715 | -8/Materials | Evolved 2 slots: Propulsion x1, Utility x1 827 | -8/Materials | Discovered new exit (range 5) 833 | -8/Materials | Entered Factory 833 | -7/Factory | Evolved 2 slots: Propulsion x1, Utility x1 1121 | -7/Factory | Identified exit to Lower Caves 1265 | -7/Factory | Self-destructed Last Messages --------------- 01076_ R-06 Scavenger collects Lgt. Ion Engine. 01078_ K-01 Serf collects debris. 01121_ Connecting with Terminal... >>Access(Branch) Found 2 branch access points: (184,17) Lower Caves (119,60) Lower Caves Map updated. 01158_ ALERT: Rogue bot located, Programmers report to Factory Zone 6D. 01158_ Acquired Lightning Gun. 01163_ K-01 Serf cleans the Fabricator. 01176_ K-01 Serf cleans the Pressure Siphon. 01178_ K-01 Serf cleans the Fabricator. 01217_ Com. Wheel destroyed. 01220_ Megafabricator disabled. 01226_ P-60 Hacker shuts down. 01235_ Overheating: Energy bleed (-37). 01235_ K-01 Serf latches onto P-60 Hacker. 01235_ K-01 Serf pushes P-60 Hacker. 01260_ K-01 Serf cleans the Neutrino Reactor. Map ----- +----------------------------------------------------+ | ?????????????????????????????????????????????????? | | ?????????????????????????????????????????????????? | | ?????????????????????????????????????????????????? | | ?????????????????????????????????????????????????? | | ?????????????????????????????????????????????????? | | ?????????????????????????????????????????????????? | | ?????????????????????????????????????????????????? | | ?????????????????????????????????????????????????? | | ?????????????????????????????????????????????????? | | ????????????????????????? ?????????????????????## | | ????????????????????????? ?????????????????????# | | ????????????????????????" ?????????????????????# | | ????????????????????????" t????????????########## | | ????????????????????????" #???????????# # | | ???????????????????????? #???????????# # | | ??????????????????"????"" #???????????# # | | ????????????????? ? """ #???????????# # | | ?????????????????? """ #???????????# # | | ?????????????????? p k k#???????????# !! # | | ??????????????# ? """u""" #???????????# !! # | | ??????????????# """k""" #???????????? ! # | | ??????????????# """ """ #?????????????? ?# | | ??????????????# u#################+##### | | ??????????????# !! !!! u | | ??????????????# !! !!! | | ??????????????# !! !! @ | | ??????????????# | | ??????????????# | | ??????????????# ############################## | | ??????????????# ??????????????????????????????# | | ??????????????# ????????????????????????????????# | | ??????????????+??????????????????????????????????# | | ?????????????????????????????????????????????????# | | ?????????????????????????????????????????######### | | ????????????????????????????????????????? # | | ????????????????????????????????????????? # | | ?????????????????????????????????????????? # | | ??????????????????????????????????????????"" """ # | | ??????????????????????????????????????????"" """ # | | ?????????????????????????############?????"" """ + | | ?????????????????????????# #? # | | ?????????????????????????# ""# """ # | | ?????????????????????????# ""# " "" """ # | | ?????????????????????????# T"#??R"" """ # | | ?????????????????????????# ""#???" # | | ?????????????????????????# """""" ""#?? # | | ?????????????????????????? """""" #?##?##?###### | | ?????????????????????????# """""" #????????????# | | ?????????????????????????# """""" #????????????# | | ?????????????????????????# #????????????# | +----------------------------------------------------+ Best States ------------- Heat Dissipation 34 Energy Generation 16 Energy Capacity 290 Matter Stores 300 Matter Capacity 300 Sight Range 16 Terrain Scan Density 10 Power Shielding 33 Evasion (%) 44 Targeting Accuracy 6 Energy Filtering 30 Item Schematics ----------------- None Robot Schematics ------------------ None Fabricated ------------ Nothing Alien Tech Used ----------------- None Achievements -------------- Dynamic Key Challenges ------------ None Game ------ Seed GammaStasisMace Manual? 0 Play Time 00:18:27 Cumulative 43.4 hours Start 2019.10.26 @ 13:41:45 End 2019.10.26 @ 15:28:36 Sessions 3 Manual Loads 0 Difficulty Rogue Special Mode None Game No. 114 Rogue 114 Adventurer 0 Explorer 0 Win Type - Total 0 Types 0/0/0/0/0/0/0 Lore% 34 Gallery% 37 Achievement% 20 Wizard Run 0 Options --------- ASCII 0 Keyboard 0 Movement Numpad Keybinds 0 Fullscreen 1 Font 18/SmallcapsGlow Map View 76x50 Tactical HUD 1 Map Filters NONE Filters NONE Steam 1 RUN: 2d59224a-0c0a-4c17-981c-20f14753b3ad